[Event "Turkish Second League 2019"]
[Site "Konya"]
[Date "2019.07.23"]
[Round "3"]
[White "Alumert, Orkun Efe"]
[Black "Ozkeskin, Nazim Efe"]
[Result "1/2-1/2"]
[ECO "D02"]
[WhiteElo "2151"]
[BlackElo "1555"]
[Annotator "NA"]
[PlyCount "83"]
[EventDate "2019.07.22"]
[EventType "team-tourn"]
[EventCountry "TUR"]
[SourceTitle "playchess.com"]
[Source "ChessBase"]
[SourceQuality "1"]
[TimeControl "5400+30"]

1. Nf3 {[%emt 0:00:30]} Nf6 {[%emt 0:00:30]} 2. g3 {[%emt 0:02:30]} d5 {[%emt 0:02:30]} 3. Bg2 {[%emt 0:00:30]} c5 {[%emt 0:00:30]} 4. O-O {[%emt 0:00:30]} Nc6 {[%emt 0:01:30]} 5. d4 {[%emt 0:02:30]} cxd4 {[%emt 0:02:30]} 6. Nxd4 {[%emt 0:00:30]} e5 {[%emt 0:00:30]} 7. Nxc6 {[%emt 0:00:30]} bxc6 {[%emt 0:00:30]} 8. c4 {[%emt 0:00:00]} Bb7 {[%emt 0:02:30]} 9. cxd5 {[%emt 0:01:00]} cxd5 {[%emt 0:01:30]} 10. Nc3 {[%emt 0:00:00]} Qd7 {[%emt 0:02:30]} 11. Bg5 {[%emt 0:13:00]} d4 {[%emt 0:03:30]} 12. Bxb7 {[%emt 0:00:00]} Qxb7 {[%emt 0:00:00]} 13. Bxf6 {[%emt 0:00:00]} gxf6 {[%emt 0:00:00]} 14. Qa4+ {[%emt 0:00:30]} Qd7 {[%emt 0:05:30]} 15. Nb5 {[%emt 0:00:30]} Rb8 {[%emt 0:00:00]} 16. Nc7+ {[%emt 0:03:30]} Kd8 {[%emt 0:00:00]} 17. Qxd7+ {[%emt 0:00:30]} Kxd7 {[%emt 0:00:00]} 18. Nd5 {[%emt 0:03:30]} Rxb2 {[%emt 0:09:00]} 19. e4 {[%emt 0:01:30]} Bc5 {[%emt 0:02:30]} 20. Nxf6+ {[%emt 0:06:30]} Ke6 {[%emt 0:02:30]} 21. Nh5 {[%emt 0:02:30]} d3 {[%emt 0:08:30]} 22. Ng7+ {[%emt 0:02:30]} Kf6 {[%emt 0:03:30]} 23. Nf5 {[%emt 0:03:30]} d2 {[%emt 0:00:30]} 24. Rfd1 {[%emt 0:01:30]} Rc8 {[%emt 0:01:30]} 25. Kf1 {[%emt 0:00:30]} Bb6 {[%emt 0:04:30]} 26. Ke2 {[%emt 0:07:30]} Rc1 {[%emt 0:04:30]} 27. h4 {[%emt 0:06:30]} Bxf2 {[%emt 0:02:30]} 28. Kf3 {[%emt 0:04:30]} Rxa1 {[%emt 0:06:30]} 29. Rxa1 {[%emt 0:00:30]} Rxa2 {[%emt 0:04:30]} 30. Rxa2 {[%emt 0:01:30]} d1=Q+ {[%emt 0:00:30]} 31. Kxf2 {[%emt 0:00:00]} Qd3 {[%emt 0:00:30]} 32. Rxa7 {[%emt 0:01:00]} Qxe4 {[%emt 0:00:30]} 33. Rxf7+ {[%emt 0:00:00]} Ke6 {[%emt 0:03:30]} 34. Rf8 {[%emt 0:01:00]} Qc2+ {[%emt 0:01:30]} 35. Kf3 {[%emt 0:06:30]} Qc6+ {[%emt 0:08:53]} 36. Kg4 {[%emt 0:03:30]} Qc4+ {[%emt 0:06:17]} 37. Kg5 {[%emt 0:03:30]} Qc1+ {[%emt 0:02:11]} 38. Kh5 {[%emt 0:01:30]} Qc5 {[%emt 0:01:47]} 39. Ng7+ {[%emt 0:01:30]} Kd5 {[%emt 0:02:31]} 40. Rf5 {[%emt 0:02:30]} Ke4 {[%emt 0:01:25]} 41. Kh6 {[%emt 0:02:44]} Qe3+ {[%emt 0:04:09]} 42. Kxh7 {[%emt 0:00:30]} 1/2-1/2

[Event "Turkish Second League 2019"]
[Site "Konya"]
[Date "2019.07.23"]
[Round "3"]
[White "Metin, Mehmet"]
[Black "Buyukasik, Diyap"]
[Result "1-0"]
[ECO "A33"]
[WhiteElo "2150"]
[BlackElo "2268"]
[Annotator "NA"]
[PlyCount "111"]
[EventDate "2019.07.22"]
[EventType "team-tourn"]
[EventCountry "TUR"]
[SourceTitle "playchess.com"]
[Source "ChessBase"]
[SourceQuality "1"]
[TimeControl "5400+30"]

1. c4 {[%emt 0:00:30]} Nf6 {[%emt 0:00:30]} 2. Nc3 {[%emt 0:00:30]} e6 {[%emt 0:02:30]} 3. e4 {[%emt 0:00:30]} d6 {[%emt 0:07:30]} 4. d4 {[%emt 0:03:30]} Be7 {[%emt 0:00:30]} 5. g3 {[%emt 0:03:30]} O-O {[%emt 0:00:30]} 6. Bg2 {[%emt 0:00:30]} c5 {[%emt 0:01:30]} 7. Nge2 {[%emt 0:01:30]} cxd4 {[%emt 0:00:30]} 8. Nxd4 {[%emt 0:00:00]} a6 {[%emt 0:02:30]} 9. O-O {[%emt 0:03:00]} Qc7 {[%emt 0:00:30]} 10. b3 {[%emt 0:02:30]} Nc6 {[%emt 0:18:30]} 11. Bb2 {[%emt 0:07:30]} Bd7 {[%emt 0:00:00]} 12. Rc1 {[%emt 0:03:30]} Qa5 {[%emt 0:04:00]} 13. a3 {[%emt 0:03:30]} Rac8 {[%emt 0:06:30]} 14. Nxc6 {[%emt 0:03:30]} Bxc6 {[%emt 0:05:30]} 15. b4 {[%emt 0:03:30]} Qb6 {[%emt 0:00:30]} 16. Qe2 {[%emt 0:03:30]} Rfd8 {[%emt 0:04:30]} 17. Nd5 {[%emt 0:12:30]} Bxd5 {[%emt 0:18:30]} 18. exd5 {[%emt 0:02:30]} e5 {[%emt 0:02:30]} 19. Bh3 {[%emt 0:03:30]} Ra8 {[%emt 0:02:30]} 20. Kh1 {[%emt 0:04:30]} a5 {[%emt 0:00:30]} 21. bxa5 {[%emt 0:04:30]} Rxa5 {[%emt 0:02:18]} 22. Bf5 {[%emt 0:07:30]} g6 {[%emt 0:05:46]} 23. Bh3 {[%emt 0:01:30]} Re8 {[%emt 0:04:20]} 24. f4 {[%emt 0:06:51]} e4 {[%emt 0:00:32]} 25. Rfd1 {[%emt 0:00:40]} Bd8 {[%emt 0:00:40]} 26. Bd4 {[%emt 0:00:47]} Qa6 {[%emt 0:00:26]} 27. Qb2 {[%emt 0:02:11]} Nh5 {[%emt 0:04:47]} 28. Bd7 {[%emt 0:02:26]} Rf8 {[%emt 0:00:36]} 29. Bg4 {[%emt 0:02:08]} Rxa3 {[%emt 0:01:38]} 30. Bxh5 {[%emt 0:00:39]} gxh5 {[%emt 0:00:53]} 31. Qe2 {[%emt 0:00:45]} f5 {[%emt 0:02:07]} 32. Qxh5 {[%emt 0:01:05]} Rd3 {[%emt 0:01:04]} 33. Rxd3 {[%emt 0:05:06]} exd3 {[%emt 0:00:02]} 34. Qd1 {[%emt 0:00:00]} Qa3 {[%emt 0:00:42]} 35. Rc3 {[%emt 0:00:00]} Qa2 {[%emt 0:00:28]} 36. Qxd3 {[%emt 0:00:58]} Re8 {[%emt 0:00:39]} 37. Rc2 {[%emt 0:03:23]} Qb1+ {[%emt 0:00:32]} 38. Kg2 {[%emt 0:00:13]} Re4 {[%emt 0:00:08]} 39. Bf2 {[%emt 0:01:12]} b6 {[%emt 0:01:00]} 40. Qd2 {[%emt 0:01:51]} Qb3 {[%emt 0:00:31]} 41. Qc3 {[%emt 0:00:53]} Qa4 {[%emt 0:00:22]} 42. Rc1 {[%emt 0:01:22]} Re2 {[%emt 0:00:48]} 43. Ra1 {[%emt 0:00:32]} Qe8 {[%emt 0:00:23]} 44. Ra8 {[%emt 0:00:30]} Kf7 {[%emt 0:00:29]} 45. Qd3 {[%emt 0:00:29]} Kg6 {[%emt 0:00:27]} 46. Rxd8 {[%emt 0:01:05]} Rxf2+ {[%emt 0:00:03]} 47. Kxf2 {[%emt 0:00:09]} Qxd8 {[%emt 0:00:04]} 48. Qe3 {[%emt 0:00:00]} Qc8 {[%emt 0:00:44]} 49. Qxb6 {[%emt 0:00:53]} Qxc4 {[%emt 0:00:45]} 50. Qxd6+ {[%emt 0:00:04]} Kg7 {[%emt 0:00:00]} 51. Qd7+ {[%emt 0:00:51]} Kg8 {[%emt 0:00:11]} 52. Qxf5 {[%emt 0:00:26]} Qd4+ {[%emt 0:00:34]} 53. Kg2 {[%emt 0:00:24]} Qd2+ {[%emt 0:00:30]} 54. Kh3 {[%emt 0:00:05]} Qd4 {[%emt 0:01:38]} 55. Qe6+ {[%emt 0:00:18]} Kf8 {[%emt 0:00:09]} 56. d6 {[%emt 0:00:12]} 1-0

[Event "Turkish Second League 2019"]
[Site "Konya"]
[Date "2019.07.23"]
[Round "3"]
[White "Altunbay, Onder"]
[Black "Ozdemir, Serhan Berat"]
[Result "1/2-1/2"]
[ECO "A48"]
[WhiteElo "1996"]
[BlackElo "1985"]
[Annotator "NA"]
[PlyCount "60"]
[EventDate "2019.07.22"]
[EventType "team-tourn"]
[EventCountry "TUR"]
[SourceTitle "playchess.com"]
[Source "ChessBase"]
[SourceQuality "1"]
[TimeControl "5400+30"]

1. d4 {[%emt 0:00:30]} Nf6 {[%emt 0:00:30]} 2. Bf4 {[%emt 0:00:30]} g6 {[%emt 0:00:30]} 3. e3 {[%emt 0:00:30]} Bg7 {[%emt 0:00:30]} 4. Nf3 {[%emt 0:00:30]} O-O {[%emt 0:00:30]} 5. Be2 {[%emt 0:00:30]} d6 {[%emt 0:00:30]} 6. h3 {[%emt 0:00:30]} c5 {[%emt 0:00:30]} 7. Nc3 {[%emt 0:00:00]} Nbd7 {[%emt 0:19:30]} 8. O-O {[%emt 0:07:00]} a6 {[%emt 0:02:30]} 9. a4 {[%emt 0:03:30]} b6 {[%emt 0:00:30]} 10. d5 {[%emt 0:03:30]} Rb8 {[%emt 0:02:30]} 11. Bh2 {[%emt 0:06:30]} Ne8 {[%emt 0:00:30]} 12. Bc4 {[%emt 0:19:30]} Ne5 {[%emt 0:06:30]} 13. Nxe5 {[%emt 0:01:30]} dxe5 {[%emt 0:00:00]} 14. Qe2 {[%emt 0:01:30]} Nd6 {[%emt 0:00:00]} 15. e4 {[%emt 0:10:30]} g5 {[%emt 0:09:30]} 16. Bd3 {[%emt 0:02:30]} Kh8 {[%emt 0:03:30]} 17. Qh5 {[%emt 0:04:30]} c4 {[%emt 0:00:30]} 18. Be2 {[%emt 0:00:30]} Bf6 {[%emt 0:02:30]} 19. Qf3 {[%emt 0:05:30]} Rg8 {[%emt 0:02:30]} 20. g4 {[%emt 0:02:30]} Qc7 {[%emt 0:06:30]} 21. Qe3 {[%emt 0:01:30]} Bd7 {[%emt 0:03:30]} 22. f3 {[%emt 0:05:30]} Qc5 {[%emt 0:00:30]} 23. Nd1 {[%emt 0:08:29]} Kg7 {[%emt 0:09:30]} 24. Kg2 {[%emt 0:00:11]} Kh8 {[%emt 0:00:30]} 25. Kg1 {[%emt 0:00:07]} Kg7 {[%emt 0:00:00]} 26. Kg2 {[%emt 0:00:07]} Kh8 {[%emt 0:00:00]} 27. Kg1 {[%emt 0:00:42]} Kg7 {[%emt 0:00:00]} 28. Kg2 {[%emt 0:00:00]} Kh8 {[%emt 0:00:00]} 29. Ra3 {[%emt 0:00:30]} Rgc8 {[%emt 0:00:30]} 30. Qxc5 {[%emt 0:00:15]} bxc5 {[%emt 0:00:30]} 1/2-1/2

[Event "Turkish Second League 2019"]
[Site "Konya"]
[Date "2019.07.23"]
[Round "3"]
[White "Danaci, Ege"]
[Black "Uyan, Ata Gunduz"]
[Result "1/2-1/2"]
[ECO "B25"]
[WhiteElo "1976"]
[BlackElo "1781"]
[Annotator "NA"]
[PlyCount "77"]
[EventDate "2019.07.22"]
[EventType "team-tourn"]
[EventCountry "TUR"]
[SourceTitle "playchess.com"]
[Source "ChessBase"]
[SourceQuality "1"]
[TimeControl "5400+30"]

1. e4 {[%emt 0:00:30]} c5 {[%emt 0:00:30]} 2. Nc3 {[%emt 0:02:30]} a6 {[%emt 0:00:30]} 3. g3 {[%emt 0:00:30]} Nc6 {[%emt 0:00:00]} 4. Bg2 {[%emt 0:00:30]} g6 {[%emt 0:01:00]} 5. d3 {[%emt 0:00:30]} Bg7 {[%emt 0:00:00]} 6. f4 {[%emt 0:00:30]} d6 {[%emt 0:00:00]} 7. Nf3 {[%emt 0:00:30]} e6 {[%emt 0:00:00]} 8. O-O {[%emt 0:00:30]} Nge7 {[%emt 0:00:00]} 9. Be3 {[%emt 0:00:00]} O-O {[%emt 0:00:30]} 10. Rb1 {[%emt 0:05:00]} Nd4 {[%emt 0:05:30]} 11. Ne2 {[%emt 0:01:30]} Nec6 {[%emt 0:04:30]} 12. c3 {[%emt 0:11:30]} Nxf3+ {[%emt 0:07:30]} 13. Bxf3 {[%emt 0:00:00]} Qe7 {[%emt 0:02:30]} 14. d4 {[%emt 0:24:00]} b6 {[%emt 0:05:30]} 15. e5 {[%emt 0:02:30]} d5 {[%emt 0:01:30]} 16. g4 {[%emt 0:01:30]} cxd4 {[%emt 0:02:30]} 17. Nxd4 {[%emt 0:00:30]} Nxd4 {[%emt 0:02:30]} 18. Bxd4 {[%emt 0:06:30]} Rb8 {[%emt 0:00:00]} 19. Qe2 {[%emt 0:01:30]} f5 {[%emt 0:06:00]} 20. exf6 {[%emt 0:05:30]} Bxf6 {[%emt 0:00:00]} 21. Rbe1 {[%emt 0:04:30]} Bxd4+ {[%emt 0:03:00]} 22. cxd4 {[%emt 0:00:00]} Qf6 {[%emt 0:00:30]} 23. Qd3 {[%emt 0:11:29]} Qxf4 {[%emt 0:03:30]} 24. Bg2 {[%emt 0:04:04]} Qd6 {[%emt 0:01:30]} 25. Rxf8+ {[%emt 0:00:05]} Qxf8 {[%emt 0:02:30]} 26. Rf1 {[%emt 0:04:11]} Qe7 {[%emt 0:00:30]} 27. Qg3 {[%emt 0:02:38]} Rb7 {[%emt 0:00:00]} 28. Rc1 {[%emt 0:02:26]} Bd7 {[%emt 0:01:00]} 29. g5 {[%emt 0:00:51]} Qg7 {[%emt 0:12:30]} 30. Qe3 {[%emt 0:00:32]} Qf8 {[%emt 0:00:30]} 31. Bh3 {[%emt 0:03:51]} Qd6 {[%emt 0:00:30]} 32. Re1 {[%emt 0:01:02]} Rc7 {[%emt 0:00:30]} 33. Bxe6+ {[%emt 0:00:39]} Qxe6 {[%emt 0:00:30]} 34. Qxe6+ {[%emt 0:00:30]} Bxe6 {[%emt 0:00:30]} 35. Rxe6 {[%emt 0:00:00]} Rc1+ {[%emt 0:00:00]} 36. Kf2 {[%emt 0:00:00]} Rc2+ {[%emt 0:00:00]} 37. Re2 {[%emt 0:00:00]} Rxe2+ {[%emt 0:00:30]} 38. Kxe2 {[%emt 0:00:00]} Kf7 {[%emt 0:00:00]} 39. Ke3 {[%emt 0:00:06]} 1/2-1/2

[Event "Turkish Second League 2019"]
[Site "Konya"]
[Date "2019.07.23"]
[Round "3"]
[White "Buke, Furkan"]
[Black "Derbentli, Cemil Furkan"]
[Result "1-0"]
[ECO "B18"]
[WhiteElo "1959"]
[BlackElo "1398"]
[Annotator "NA"]
[PlyCount "85"]
[EventDate "2019.07.22"]
[EventType "team-tourn"]
[EventCountry "TUR"]
[SourceTitle "playchess.com"]
[Source "ChessBase"]
[SourceQuality "1"]
[TimeControl "5400+30"]

1. e4 {[%emt 0:00:30]} c6 {[%emt 0:00:30]} 2. d4 {[%emt 0:00:30]} d5 {[%emt 0:00:30]} 3. Nc3 {[%emt 0:00:30]} dxe4 {[%emt 0:00:30]} 4. Nxe4 {[%emt 0:00:30]} Bf5 {[%emt 0:00:30]} 5. Nc5 {[%emt 0:00:00]} e5 {[%emt 0:00:30]} 6. Nxb7 {[%emt 0:01:00]} Qb6 {[%emt 0:09:30]} 7. Nc5 {[%emt 0:00:30]} Bxc5 {[%emt 0:05:30]} 8. dxc5 {[%emt 0:00:00]} Qxc5 {[%emt 0:00:30]} 9. c3 {[%emt 0:01:00]} Nf6 {[%emt 0:03:30]} 10. Be3 {[%emt 0:00:30]} Qe7 {[%emt 0:00:30]} 11. Bd3 {[%emt 0:04:30]} e4 {[%emt 0:07:30]} 12. Bc4 {[%emt 0:03:30]} O-O {[%emt 0:10:30]} 13. Ne2 {[%emt 0:03:30]} Ng4 {[%emt 0:09:30]} 14. Ng3 {[%emt 0:11:30]} Nxe3 {[%emt 0:01:30]} 15. fxe3 {[%emt 0:00:00]} Bg6 {[%emt 0:01:30]} 16. O-O {[%emt 0:03:00]} Nd7 {[%emt 0:02:30]} 17. Qe2 {[%emt 0:04:30]} Rab8 {[%emt 0:05:30]} 18. Rf4 {[%emt 0:03:30]} Nc5 {[%emt 0:06:30]} 19. Raf1 {[%emt 0:02:30]} Rbe8 {[%emt 0:09:30]} 20. Nf5 {[%emt 0:05:30]} Qe5 {[%emt 0:09:58]} 21. Nh4 {[%emt 0:02:30]} Ne6 {[%emt 0:04:54]} 22. Nxg6 {[%emt 0:01:30]} hxg6 {[%emt 0:00:28]} 23. R4f2 {[%emt 0:01:30]} Re7 {[%emt 0:02:16]} 24. Qg4 {[%emt 0:01:30]} Qc5 {[%emt 0:02:03]} 25. Qxe4 {[%emt 0:02:30]} Ng5 {[%emt 0:00:58]} 26. Qd4 {[%emt 0:04:30]} Qa5 {[%emt 0:04:31]} 27. Bb3 {[%emt 0:03:30]} Re4 {[%emt 0:01:05]} 28. Rxf7 {[%emt 0:02:30]} Rxd4 {[%emt 0:00:35]} 29. Rxf8+ {[%emt 0:04:30]} Kh7 {[%emt 0:00:33]} 30. exd4 {[%emt 0:00:00]} Ne4 {[%emt 0:00:06]} 31. R8f4 {[%emt 0:02:00]} Nf6 {[%emt 0:00:18]} 32. Re1 {[%emt 0:01:30]} Qg5 {[%emt 0:00:14]} 33. Ref1 {[%emt 0:00:30]} Nh5 {[%emt 0:00:07]} 34. R4f3 {[%emt 0:01:30]} Qd2 {[%emt 0:00:07]} 35. g4 {[%emt 0:00:30]} Qxb2 {[%emt 0:00:39]} 36. gxh5 {[%emt 0:00:00]} gxh5 {[%emt 0:00:07]} 37. R1f2 {[%emt 0:00:00]} Qc1+ {[%emt 0:00:50]} 38. Kg2 {[%emt 0:00:30]} h4 {[%emt 0:00:00]} 39. Rf4 {[%emt 0:01:30]} Qxc3 {[%emt 0:02:35]} 40. Rxh4+ {[%emt 0:00:00]} Kg6 {[%emt 0:00:38]} 41. Bf7+ {[%emt 0:00:00]} Kg5 {[%emt 0:00:17]} 42. Rh5+ {[%emt 0:00:00]} Kg4 {[%emt 0:00:00]} 43. h3+ {[%emt 0:00:00]} 1-0

[Event "Turkish Second League 2019"]
[Site "Konya"]
[Date "2019.07.23"]
[Round "3"]
[White "Demirag, Batuhan"]
[Black "Aydin, Akin"]
[Result "1-0"]
[ECO "A13"]
[WhiteElo "1939"]
[BlackElo "1726"]
[Annotator "NA"]
[PlyCount "68"]
[EventDate "2019.07.22"]
[EventType "team-tourn"]
[EventCountry "TUR"]
[SourceTitle "playchess.com"]
[Source "ChessBase"]
[SourceQuality "1"]
[TimeControl "5400+30"]

1. Nf3 {[%emt 0:00:30]} d5 {[%emt 0:00:30]} 2. c4 {[%emt 0:00:30]} e6 {[%emt 0:00:30]} 3. b3 {[%emt 0:00:30]} Nf6 {[%emt 0:00:30]} 4. Bb2 {[%emt 0:00:30]} c5 {[%emt 0:00:30]} 5. g3 {[%emt 0:00:00]} d4 {[%emt 0:00:00]} 6. Bg2 {[%emt 0:00:00]} Nc6 {[%emt 0:00:00]} 7. O-O {[%emt 0:00:30]} Bd6 {[%emt 0:00:30]} 8. e3 {[%emt 0:01:30]} e5 {[%emt 0:00:00]} 9. exd4 {[%emt 0:00:30]} cxd4 {[%emt 0:00:00]} 10. d3 {[%emt 0:02:30]} O-O {[%emt 0:00:30]} 11. a3 {[%emt 0:01:30]} a5 {[%emt 0:00:00]} 12. Nbd2 {[%emt 0:01:30]} Nd7 {[%emt 0:04:00]} 13. Re1 {[%emt 0:08:30]} f5 {[%emt 0:00:30]} 14. h4 {[%emt 0:02:30]} h6 {[%emt 0:00:30]} 15. h5 {[%emt 0:04:30]} Nc5 {[%emt 0:02:30]} 16. Qe2 {[%emt 0:02:30]} Qf6 {[%emt 0:00:30]} 17. Nh4 {[%emt 0:02:30]} Be6 {[%emt 0:08:30]} 18. Bxc6 {[%emt 0:03:30]} bxc6 {[%emt 0:00:30]} 19. b4 {[%emt 0:00:30]} Na4 {[%emt 0:01:30]} 20. Bxd4 {[%emt 0:00:30]} axb4 {[%emt 0:07:30]} 21. Bxe5 {[%emt 0:04:30]} Bxe5 {[%emt 0:07:30]} 22. Qxe5 {[%emt 0:00:30]} Qxe5 {[%emt 0:00:30]} 23. Rxe5 {[%emt 0:00:00]} Bf7 {[%emt 0:00:00]} 24. axb4 {[%emt 0:01:00]} Nb2 {[%emt 0:02:00]} 25. Rxa8 {[%emt 0:04:30]} Rxa8 {[%emt 0:02:30]} 26. Ra5 {[%emt 0:33:30]} Rd8 {[%emt 0:11:30]} 27. Nxf5 {[%emt 0:00:30]} Rxd3 {[%emt 0:00:30]} 28. Ra8+ {[%emt 0:00:30]} Kh7 {[%emt 0:00:00]} 29. Ra7 {[%emt 0:00:30]} Kg8 {[%emt 0:01:00]} 30. Ne4 {[%emt 0:03:30]} Nxc4 {[%emt 0:02:30]} 31. Nf6+ {[%emt 0:01:30]} gxf6 {[%emt 0:00:30]} 32. Nxh6+ {[%emt 0:00:00]} Kg7 {[%emt 0:04:30]} 33. Nxf7 {[%emt 0:00:00]} Ra3 {[%emt 0:01:30]} 34. Rc7 {[%emt 0:00:30]} Ra8 {[%emt 0:03:30]} 1-0

[Event "Turkish Second League 2019"]
[Site "Konya"]
[Date "2019.07.23"]
[Round "3"]
[White "Abdimanoglu, Beste Basak"]
[Black "Guclu, Yagmur"]
[Result "1-0"]
[ECO "D17"]
[WhiteElo "1898"]
[BlackElo "1516"]
[Annotator "NA"]
[PlyCount "105"]
[EventDate "2019.07.22"]
[EventType "team-tourn"]
[EventCountry "TUR"]
[SourceTitle "playchess.com"]
[Source "ChessBase"]
[SourceQuality "1"]
[TimeControl "5400+30"]

1. d4 {[%emt 0:00:30]} d5 {[%emt 0:00:30]} 2. c4 {[%emt 0:00:30]} c6 {[%emt 0:00:30]} 3. Nf3 {[%emt 0:00:30]} Nf6 {[%emt 0:00:30]} 4. Nc3 {[%emt 0:00:30]} dxc4 {[%emt 0:00:30]} 5. a4 {[%emt 0:00:30]} Bf5 {[%emt 0:00:00]} 6. Ne5 {[%emt 0:00:00]} Nbd7 {[%emt 0:00:00]} 7. Nxc4 {[%emt 0:00:00]} Qc7 {[%emt 0:01:30]} 8. f3 {[%emt 0:08:30]} e6 {[%emt 0:09:30]} 9. e4 {[%emt 0:02:30]} Bg6 {[%emt 0:00:30]} 10. Be3 {[%emt 0:06:30]} Be7 {[%emt 0:05:30]} 11. Be2 {[%emt 0:03:30]} Rd8 {[%emt 0:08:30]} 12. Qc1 {[%emt 0:02:30]} O-O {[%emt 0:11:30]} 13. O-O {[%emt 0:04:30]} Nb6 {[%emt 0:11:30]} 14. Rd1 {[%emt 0:21:30]} Nxc4 {[%emt 0:05:30]} 15. Bxc4 {[%emt 0:00:30]} a5 {[%emt 0:04:30]} 16. Ne2 {[%emt 0:07:30]} h6 {[%emt 0:12:30]} 17. Nf4 {[%emt 0:02:30]} Bh7 {[%emt 0:13:13]} 18. Bxe6 {[%emt 0:05:30]} fxe6 {[%emt 0:03:56]} 19. Nxe6 {[%emt 0:00:00]} Qd7 {[%emt 0:00:12]} 20. Nxf8 {[%emt 0:05:00]} Rxf8 {[%emt 0:00:40]} 21. Qc4+ {[%emt 0:12:02]} Kh8 {[%emt 0:00:15]} 22. Qe2 {[%emt 0:05:41]} Rd8 {[%emt 0:03:24]} 23. Kh1 {[%emt 0:00:27]} Bg8 {[%emt 0:03:12]} 24. Qf2 {[%emt 0:05:04]} Rf8 {[%emt 0:01:57]} 25. Qe1 {[%emt 0:01:02]} Bb4 {[%emt 0:01:30]} 26. Qh4 {[%emt 0:03:38]} Bh7 {[%emt 0:00:55]} 27. Bd2 {[%emt 0:00:53]} Bxd2 {[%emt 0:01:00]} 28. Rxd2 {[%emt 0:00:02]} Rd8 {[%emt 0:00:02]} 29. Re1 {[%emt 0:00:52]} Re8 {[%emt 0:00:36]} 30. Qf2 {[%emt 0:00:56]} Bg8 {[%emt 0:00:30]} 31. d5 {[%emt 0:00:45]} cxd5 {[%emt 0:00:56]} 32. e5 {[%emt 0:00:03]} Nh7 {[%emt 0:00:00]} 33. Qb6 {[%emt 0:00:47]} Qxa4 {[%emt 0:00:34]} 34. Qxb7 {[%emt 0:00:35]} Be6 {[%emt 0:00:31]} 35. b3 {[%emt 0:00:40]} Qb4 {[%emt 0:00:33]} 36. Qxb4 {[%emt 0:00:43]} axb4 {[%emt 0:00:01]} 37. Rd4 {[%emt 0:00:00]} Rb8 {[%emt 0:01:03]} 38. f4 {[%emt 0:00:00]} h5 {[%emt 0:00:24]} 39. Rf1 {[%emt 0:00:12]} g6 {[%emt 0:00:27]} 40. Ra1 {[%emt 0:00:30]} Nf8 {[%emt 0:00:33]} 41. Ra4 {[%emt 0:00:41]} Nd7 {[%emt 0:00:29]} 42. Raxb4 {[%emt 0:00:41]} Rxb4 {[%emt 0:00:49]} 43. Rxb4 {[%emt 0:00:01]} Kg8 {[%emt 0:00:04]} 44. Kg1 {[%emt 0:00:51]} Kf8 {[%emt 0:00:33]} 45. Kf2 {[%emt 0:00:35]} Ke8 {[%emt 0:00:32]} 46. Ke3 {[%emt 0:00:36]} Kd8 {[%emt 0:00:26]} 47. Kd4 {[%emt 0:00:33]} Kc7 {[%emt 0:00:30]} 48. Ra4 {[%emt 0:00:15]} Kb7 {[%emt 0:00:39]} 49. Ra1 {[%emt 0:01:07]} Kc7 {[%emt 0:00:31]} 50. Ra7+ {[%emt 0:00:23]} Kd8 {[%emt 0:00:19]} 51. b4 {[%emt 0:00:42]} Kc8 {[%emt 0:00:42]} 52. Ra6 {[%emt 0:00:41]} Bf7 {[%emt 0:00:16]} 53. e6 {[%emt 0:00:13]} 1-0

[Event "Turkish Second League 2019"]
[Site "Konya"]
[Date "2019.07.23"]
[Round "3"]
[White "Sade, Defne"]
[Black "Acar, Ilayda"]
[Result "1-0"]
[ECO "B90"]
[WhiteElo "1897"]
[BlackElo "1346"]
[Annotator "NA"]
[PlyCount "79"]
[EventDate "2019.07.22"]
[EventType "team-tourn"]
[EventCountry "TUR"]
[SourceTitle "playchess.com"]
[Source "ChessBase"]
[SourceQuality "1"]
[TimeControl "5400+30"]

1. e4 {[%emt 0:00:30]} c5 {[%emt 0:00:30]} 2. Nf3 {[%emt 0:00:30]} d6 {[%emt 0:00:30]} 3. d4 {[%emt 0:00:30]} cxd4 {[%emt 0:00:30]} 4. Nxd4 {[%emt 0:00:30]} Nf6 {[%emt 0:00:30]} 5. Nc3 {[%emt 0:00:30]} a6 {[%emt 0:00:30]} 6. Bc4 {[%emt 0:00:30]} e5 {[%emt 0:00:00]} 7. Nde2 {[%emt 0:00:00]} Be6 {[%emt 0:00:00]} 8. Bb3 {[%emt 0:00:00]} Be7 {[%emt 0:00:30]} 9. Ng3 {[%emt 0:00:00]} O-O {[%emt 0:01:30]} 10. O-O {[%emt 0:00:00]} Nbd7 {[%emt 0:06:30]} 11. h3 {[%emt 0:07:30]} Nc5 {[%emt 0:01:30]} 12. Bg5 {[%emt 0:01:30]} Nxb3 {[%emt 0:01:30]} 13. axb3 {[%emt 0:00:30]} b5 {[%emt 0:00:30]} 14. Bxf6 {[%emt 0:00:30]} Bxf6 {[%emt 0:00:30]} 15. Nd5 {[%emt 0:00:30]} Be7 {[%emt 0:06:30]} 16. Qd3 {[%emt 0:13:30]} Bxd5 {[%emt 0:01:30]} 17. Qxd5 {[%emt 0:00:30]} g6 {[%emt 0:00:30]} 18. Rfd1 {[%emt 0:00:30]} Qc7 {[%emt 0:01:30]} 19. c3 {[%emt 0:00:30]} Rfd8 {[%emt 0:00:30]} 20. Qd2 {[%emt 0:02:30]} Qc6 {[%emt 0:03:30]} 21. Qd3 {[%emt 0:12:30]} Rac8 {[%emt 0:07:30]} 22. Qf3 {[%emt 0:00:30]} Bf8 {[%emt 0:04:30]} 23. Rd5 {[%emt 0:00:30]} Bg7 {[%emt 0:00:30]} 24. Rad1 {[%emt 0:00:30]} Rc7 {[%emt 0:03:30]} 25. h4 {[%emt 0:06:30]} Qb6 {[%emt 0:07:30]} 26. Nf1 {[%emt 0:01:30]} Rcd7 {[%emt 0:12:30]} 27. Ne3 {[%emt 0:00:30]} Bh6 {[%emt 0:02:30]} 28. Ng4 {[%emt 0:00:30]} Bg7 {[%emt 0:00:30]} 29. h5 {[%emt 0:00:30]} f5 {[%emt 0:09:30]} 30. exf5 {[%emt 0:04:30]} gxh5 {[%emt 0:07:30]} 31. Ne3 {[%emt 0:04:30]} Bh6 {[%emt 0:03:56]} 32. R5d3 {[%emt 0:03:30]} Bxe3 {[%emt 0:01:03]} 33. Rxe3 {[%emt 0:00:30]} Rg7 {[%emt 0:02:04]} 34. Qxh5 {[%emt 0:07:30]} a5 {[%emt 0:02:35]} 35. Rdd3 {[%emt 0:07:30]} Qc6 {[%emt 0:05:35]} 36. Rg3 {[%emt 0:00:00]} Rxg3 {[%emt 0:00:51]} 37. Rxg3+ {[%emt 0:00:00]} Kh8 {[%emt 0:00:59]} 38. Qg5 {[%emt 0:03:30]} Qd7 {[%emt 0:02:15]} 39. Qf6+ {[%emt 0:00:00]} Qg7 {[%emt 0:00:00]} 40. Qxg7# {[%emt 0:00:00]} 1-0

[Event "Turkish Second League 2019"]
[Site "Konya"]
[Date "2019.07.23"]
[Round "3"]
[White "Ozbek, Busra"]
[Black "Catal, Uktenur"]
[Result "1-0"]
[ECO "A47"]
[WhiteElo "1866"]
[BlackElo "1885"]
[Annotator "NA"]
[PlyCount "87"]
[EventDate "2019.07.22"]
[EventType "team-tourn"]
[EventCountry "TUR"]
[SourceTitle "playchess.com"]
[Source "ChessBase"]
[SourceQuality "1"]
[TimeControl "5400+30"]

1. d4 Nf6 2. Nf3 e6 3. e3 b6 4. Bd3 Bb7 5. b3 c5 6. Bb2 Nc6 7. a3 Be7 8. O-O O-O 9. c4 Rc8 10. Nc3 d5 11. cxd5 exd5 12. Bf5 Ra8 13. Rc1 cxd4 14. exd4 g6 15. Bb1 Nh5 16. b4 Bf6 17. Ba2 Ne7 18. Re1 Bg7 19. Ne5 Nf4 20. Qf3 Ne6 21. Rcd1 h5 22. Bb1 a6 23. Bc1 Qd6 24. Qe3 Rae8 25. b5 Nc7 26. bxa6 Bxa6 27. Qg3 Nc6 28. f4 Na5 29. Na2 Nb5 30. Nb4 Bb7 31. Qd3 Nc7 32. Be3 Rc8 33. Bf2 Ne6 34. f5 Ng5 35. fxg6 f6 36. Nf7 Nxf7 37. gxf7+ Rxf7 38. Qh7+ Kf8 39. Bf5 Re8 40. Rxe8+ Kxe8 41. Bg6 Kf8 42. Bxf7 Kxf7 43. Qxh5+ Kg8 44. Re1 1-0